bitfinex-derivatives/quotes_ETHF0:USTF0_20240920
["timestamp","ask_amount","ask_price","bid_price","bid_amount"]
[1726851911279,0.39246,2547.7,2547.4,0.9636]
[1726851911579,0.39248,2547.5,2547.4,0.9636]
[1726851911879,4.18891,2547.8,2547.4,0.9636]
[1726851911880,0.39245,2547.7,2547.4,0.9636]
[1726851912274,3.60024,2547.8,2547.4,1.35609]
[1726851912481,3.2078,2548.1,2547.6,0.39245]
[1726851912682,0.39243,2547.9,2547.6,0.4703]
[1726851912875,0.39243,2547.8,2547.6,0.4703]
[1726851913080,3.2078,2548.1,2547.6,0.4703]
[1726851913986,3.2078,2547.8,2547.4,1.35609]
[1726851914177,3.60024,2547.8,2547.5,0.39248]
[1726851914381,3.2078,2547.8,2547.5,0.39248]
[1726851914580,2.2322389,2548.2,2547.5,0.39248]
[1726851914581,0.39243,2547.9,2547.5,0.39248]
[1726851914789,0.39243,2547.9,2547.6,0.39246]
[1726851914790,0.39242,2547.9,2547.6,0.39246]
[1726851915179,1.0150789,2548.0,2547.7,0.39244]
[1726851915381,1.0150789,2548.0,2547.5,3.2078]
[1726851915577,4.2228789,2548.1,2547.5,3.2078]
[1726851915780,1.0150789,2548.2,2548.1,0.39239]
[1726851915987,1.0150789,2548.3,2548.2,0.39237]
[1726851916279,1.0150789,2548.5,2548.1,0.39238]
[1726851916485,4.2228789,2548.4,2548.2,0.4796]
[1726851916689,1.4074289,2548.3,2548.2,0.4796]
[1726851917079,0.39235,2548.3,2548.2,0.4796]
[1726851917384,10.90492,2548.3,2547.7,0.39243]
[1726851917684,4.22199998,2548.1,2547.7,0.4796]
[1726851917987,0.39242,2547.9,2547.7,0.87205]
[1726851918290,1.40660998,2548.0,2547.7,0.87204]
[1726851918480,0.39241,2548.0,2547.7,0.87204]
[1726851918682,1.40660998,2548.0,2547.7,0.87204]
[1726851919384,1.01419998,2548.0,2547.9,0.39242]
[1726851919777,1.91367824,2548.2,2547.7,0.4796]
[1726851919778,1.01472379,2548.1,2547.7,0.4796]
[1726851919978,1.52129824,2548.2,2547.7,3.6874]
[1726851919979,1.01472379,2548.2,2547.7,3.6874]
[1726851920174,1.01472379,2548.2,2548.1,0.39239]
[1726851920375,1.91364824,2548.3,2548.2,0.39237]
[1726851920575,1.40758852,2548.3,2548.2,0.39237]
[1726851921081,0.39235,2548.3,2548.2,0.39237]
[1726851921275,1.40772699,2548.3,2548.2,0.39237]
[1726851921498,1.91364824,2548.3,2548.2,0.39237]
[1726851921875,1.52129824,2548.3,2548.2,0.39237]
[1726851922079,1.91365824,2548.3,2548.2,0.39237]
[1726851922276,2.03891534,2548.4,2547.9,3.7017]
[1726851922277,0.39237,2548.2,2548.1,0.39238]
[1726851922488,1.01578043,2548.2,2548.1,0.39238]
[1726851922685,1.91603065,2548.3,2547.9,3.7017]
[1726851922686,0.3924,2548.0,2547.9,3.7017]
[1726851922887,1.01578043,2548.2,2547.9,0.88631]
[1726851923085,0.3924,2548.0,2547.9,0.4939]
[1726851923583,0.3924,2548.0,2547.8,4.92343]
[1726851923584,1.40819043,2548.0,2547.8,4.92343]
[1726851923787,1.01578043,2548.1,2547.8,4.531]
[1726851923987,0.39242,2547.9,2547.8,4.531]
[1726851924191,1.40819043,2548.0,2547.8,4.92343]
[1726851924384,0.39242,2547.9,2547.8,4.531]
[1726851924789,1.40819043,2548.0,2547.8,4.92343]
[1726851924986,1.40820043,2548.0,2547.8,4.92343]
[1726851925396,1.40817043,2548.1,2547.9,0.39242]
[1726851925689,1.01578043,2548.1,2548.0,0.3924]
[1726851925890,1.01578043,2548.2,2548.1,0.39239]
[1726851926188,0.39239,2548.1,2547.8,4.531]
[1726851926391,1.01578043,2548.1,2547.9,0.39241]
[1726851926584,1.40818043,2548.1,2547.9,0.39241]
[1726851926780,1.01578043,2548.1,2547.7,0.9618]
[1726851926982,0.39243,2547.8,2547.7,0.9618]
[1726851927186,1.40821043,2547.8,2547.7,0.9618]
[1726851927386,0.39243,2547.8,2547.7,0.9618]
[1726851927581,1.40821043,2547.8,2547.7,0.9618]
[1726851927980,1.40821043,2547.8,2547.7,1.35425]
[1726851928891,1.01578043,2547.8,2547.7,1.35425]
[1726851929084,1.40821043,2547.8,2547.7,1.35425]
[1726851930191,1.37352,2547.8,2547.7,0.4796]
[1726851930397,3.92216417,2547.8,2547.7,0.4796]
[1726851930591,3.92216417,2547.8,2547.4,0.84588]
[1726851930592,2.88973723,2547.8,2547.4,0.84588]
[1726851930903,2.4286962,2547.6,2547.4,1.34249]
[1726851931093,0.19635752,2547.5,2547.4,1.34249]
[1726851931293,2.23258372,2547.5,2547.4,1.34249]
[1726851931499,4.12195752,2547.5,2547.0,3.2078]
[1726851931690,4.12195752,2547.5,2547.1,0.86543]
[1726851931691,1.52706052,2547.2,2547.1,0.86543]
[1726851931989,0.19639054,2547.2,2547.1,0.86543]
[1726851932393,2.23247124,2547.2,2547.1,0.86543]
[1726851932589,0.19639054,2547.2,2547.1,0.86543]
[1726851932995,2.62499124,2547.2,2547.1,0.4729]
[1726851933386,7.53191124,2547.2,2547.1,0.4729]
[1726851933601,9.36133479,2547.2,2546.8,0.86428]
[1726851933895,2.42927682,2546.9,2546.7,0.39259]
[1726851934102,1.72384875,2546.8,2546.7,0.39259]
[1726851934296,1.72387576,2546.8,2546.7,0.39259]
[1726851934593,1.52745821,2546.8,2546.7,0.39259]
[1726851934994,1.52745821,2546.8,2546.7,4.31899]
[1726851935197,1.0182276,2546.9,2546.7,3.9264]
[1726851935394,1.0182276,2546.9,2546.6,4.66224]
[1726851935395,1.0182276,2546.9,2546.8,4.31899]
[1726851935699,1.0182276,2546.9,2546.8,0.39259]
[1726851935899,1.0182276,2546.9,2546.8,4.31899]
[1726851936101,1.0182276,2547.0,2546.9,0.39257]
[1726851936399,1.0182276,2547.0,2546.8,3.9264]
[1726851936590,1.52675339,2547.0,2546.9,0.39256]
[1726851936896,1.52675339,2547.0,2546.9,0.88546]
[1726851937498,0.39255,2547.0,2546.9,0.4929]
[1726851938998,0.39255,2547.0,2546.8,0.39258]
[1726851939190,0.39257,2546.9,2546.6,0.9363]
[1726851939391,3.45257,2546.9,2546.6,0.9363]
[1726851939686,3.45257,2546.9,2546.7,0.3926]
[1726851941097,3.2078,2547.1,2546.6,0.9363]
[1726851941293,0.39254,2547.1,2546.6,4.1441]
[1726851941696,0.39254,2547.1,2546.9,0.39257]
[1726851942103,0.39255,2547.1,2546.9,0.39257]
[1726851942399,0.39255,2547.1,2547.0,0.4779]
[1726851942794,1.01785568,2547.3,2547.0,0.4779]
[1726851942989,1.01785568,2547.5,2547.1,0.995]
[1726851943195,0.39249,2547.5,2547.1,0.995]
[1726851943398,1.01785568,2547.6,2547.4,0.39249]
[1726851943399,0.39247,2547.6,2547.4,0.39249]
[1726851943596,0.39247,2547.6,2547.5,0.39247]
[1726851944398,1.99892568,2547.9,2547.4,0.39249]
[1726851944399,0.39249,2547.5,2547.4,0.39249]
[1726851944800,0.39249,2547.5,2547.2,3.2078]
[1726851945107,0.39246,2547.7,2547.5,0.39247]
[1726851945400,1.41027568,2547.9,2547.6,0.9695]
[1726851945596,1.41027568,2547.9,2547.7,0.84664]
[1726851945597,0.39242,2547.9,2547.7,0.84664]
[1726851946316,0.39241,2548.0,2547.8,0.39242]
[1726851946597,1.99883568,2548.1,2547.7,0.4542]
[1726851946598,1.01785568,2548.1,2547.7,0.4542]
[1726851946806,1.01785568,2548.1,2547.7,0.84664]
[1726851946807,0.39243,2547.9,2547.7,0.84664]
[1726851947096,0.39241,2548.0,2547.8,0.39243]
[1726851947301,0.39241,2548.0,2547.8,0.39242]
[1726851947698,0.39242,2547.9,2547.8,0.39242]
[1726851947900,0.39242,2547.9,2547.7,0.4542]
[1726851947901,1.01785568,2548.1,2547.7,0.4542]
[1726851948104,1.99883568,2548.1,2547.7,0.4542]
[1726851948296,0.39242,2547.9,2547.7,0.4542]
[1726851948605,0.39242,2547.9,2547.8,0.39243]
[1726851948904,0.3924,2548.0,2547.9,0.39241]
[1726851949099,1.01785568,2548.1,2547.9,0.39241]
[1726851949100,0.3924,2548.1,2547.9,0.39241]
[1726851949503,4.22565568,2548.2,2547.9,0.39241]
[1726851949504,0.3924,2548.0,2547.9,0.39241]
[1726851949702,0.39242,2547.9,2547.8,0.39242]
[1726851950196,5.71550339,2548.2,2547.7,0.4542]
[1726851950197,0.39243,2547.8,2547.7,0.4542]
[1726851950799,0.39242,2548.0,2547.8,0.39242]
[1726851950998,0.39242,2547.9,2547.8,0.39242]
[1726851952506,0.39243,2547.8,2547.7,0.4542]
[1726851952807,11.05140276,2547.8,2547.7,0.4542]
[1726851952995,12.95954471,2547.8,2547.7,0.4542]
[1726851953201,17.58602471,2547.8,2546.9,0.98141]
[1726851953400,5.29585509,2548.1,2547.0,0.469]
[1726851953401,1.01738369,2547.1,2547.0,0.469]
[1726851953594,1.01738369,2547.1,2547.0,0.86155]
[1726851953801,1.91860554,2547.2,2547.1,0.39254]
[1726851953995,0.39254,2547.1,2547.0,0.469]
[1726851954203,1.52584638,2547.1,2547.0,0.86155]
[1726851954392,1.72224432,2547.1,2547.0,0.86155]
[1726851954595,1.52584638,2547.1,2547.0,0.469]
[1726851954906,1.91838638,2547.1,2547.0,0.86155]
[1726851955103,2.11477713,2547.1,2547.0,0.469]
[1726851955307,2.62394317,2547.1,2547.0,0.469]
[1726851955805,0.58893075,2547.1,2547.0,0.469]
[1726851956106,12.15796689,2547.1,2546.7,0.39259]
[1726851956307,1.5264895,2546.8,2546.7,0.3926]
[1726851957305,1.01767958,2546.8,2546.7,3.6004]
[1726851957608,1.01762625,2546.8,2546.7,3.6004]
[1726851957910,1.5264895,2546.8,2546.7,3.6004]
[1726851958392,1.01739957,2546.8,2546.7,8.11571]
[1726851958597,1.01739957,2546.8,2546.7,8.50831]
[1726851958806,1.01739957,2546.8,2546.7,14.50831]
[1726851959024,1.01739766,2546.9,2546.8,0.39259]
[1726851959305,1.9190595,2546.9,2546.8,0.39259]
[1726851959609,1.9190595,2546.9,2546.5,1.91668]
[1726851959610,0.39259,2546.8,2546.7,0.3926]
[1726851959795,0.39261,2546.7,2546.6,0.39261]
[1726851959996,0.39261,2546.7,2546.5,1.32773]
[1726851959997,0.39262,2546.6,2546.5,1.32773]
[1726851960203,0.39262,2546.6,2546.5,0.9351]
[1726851960204,1.9186908,2546.6,2546.5,0.9351]
[1726851960404,0.98159,2546.5,2546.2,4.507]
[1726851960703,0.39266,2546.3,2546.2,4.507]
[1726851961404,0.39269,2546.1,2546.0,0.4792]
[1726851962807,0.39269,2546.2,2546.0,0.8719]
[1726851963004,4.18948,2546.3,2545.8,1.31403]
[1726851963205,0.39272,2546.0,2545.8,1.31403]
[1726851963508,0.39272,2545.9,2545.8,0.9213]
[1726851963708,0.39278,2545.6,2545.4,3.2078]
[1726851963901,0.39275,2545.8,2545.2,3.6975]
[1726851964105,3.2078,2546.0,2545.2,3.6975]
[1726851964297,0.98183,2545.9,2545.2,3.6975]
[1726851964505,0.98183,2545.9,2545.2,4.09033]
[1726851964506,0.39279,2545.5,2545.2,4.09033]
[1726851964701,0.39278,2545.6,2545.3,0.39281]
[1726851965007,0.39277,2545.7,2545.3,0.39281]
[1726851965197,0.39277,2545.6,2545.3,0.39281]
[1726851965403,0.39276,2545.7,2545.3,0.39281]
[1726851965601,0.39276,2545.7,2545.4,0.39279]
[1726851965805,0.98182,2545.9,2545.3,0.39281]
[1726851965806,0.39277,2545.6,2545.3,0.39281]
[1726851966006,1.01710479,2546.2,2545.3,0.39281]
[1726851966007,1.01710479,2546.3,2545.5,6.9778]
[1726851966309,0.39267,2546.3,2546.0,3.2078]
[1726851966524,0.39266,2546.4,2546.1,0.84859]
[1726851967404,0.39264,2546.5,2546.2,0.39268]
[1726851967602,0.39265,2546.4,2546.2,0.39268]
[1726851968313,0.39267,2546.3,2546.1,0.4559]
[1726851968610,0.98159,2546.5,2546.1,0.4559]
[1726851968911,0.39273,2545.9,2545.6,4.08706]
[1726851969104,0.98178,2546.0,2545.4,4.487]
[1726851969410,0.39276,2545.7,2545.5,0.39278]
[1726851969803,0.39278,2545.6,2545.4,4.487]
[1726851970216,0.39278,2545.6,2545.4,4.8798]
[1726851970407,0.39276,2545.7,2545.4,4.487]
[1726851970716,0.39278,2545.6,2545.4,4.487]
[1726851970909,0.39278,2545.6,2545.4,4.8798]
[1726851971412,3.2078,2545.8,2545.2,0.85443]
[1726851971413,0.39281,2545.4,2545.2,0.85443]
[1726851971605,3.2078,2545.5,2545.3,0.39281]
[1726851971804,3.77,2546.0,2545.3,3.2078]
[1726851972006,41.5408,2546.2,2545.6,3.2078]
[1726851972213,1.13348,2546.2,2545.6,3.2078]
[1726851972510,0.39271,2546.0,2545.6,3.2078]
[1726851972714,3.2078,2546.2,2545.6,3.2078]
[1726851972906,3.2078,2546.2,2546.1,0.39269]
[1726851973218,3.2078,2546.2,2546.0,0.3927]
[1726851973513,0.3927,2546.1,2545.9,0.39271]
[1726851973710,3.60049,2546.2,2546.0,0.39271]
[1726851974022,0.39271,2546.0,2545.9,0.39271]
[1726851974214,0.39272,2545.9,2545.8,0.39273]
[1726851974516,0.39272,2545.9,2545.8,0.39274]
[1726851974913,0.98174,2546.1,2545.7,0.39275]
[1726851975115,0.98178,2546.0,2545.5,0.4651]
[1726851975414,0.39276,2545.7,2545.6,0.39276]
[1726851975612,0.39279,2545.5,2545.3,0.3928]
[1726851975809,0.3928,2545.5,2545.4,0.3928]
[1726851976003,0.39278,2545.6,2545.2,4.9496]
[1726851976212,0.39279,2545.5,2545.4,0.39279]
[1726851976508,0.39278,2545.6,2545.4,0.39279]
[1726851976708,0.98191,2545.7,2545.2,4.9496]
[1726851976917,0.39279,2545.5,2545.4,0.3928]
[1726851978511,0.98191,2545.7,2545.3,0.39281]
[1726851978709,0.39281,2545.4,2545.3,0.39281]
[1726851979010,0.98193,2545.6,2545.2,4.9496]
[1726851979011,0.39278,2545.6,2545.5,0.39278]
[1726851979210,0.39278,2545.6,2545.2,4.9496]
[1726851979211,0.39279,2545.5,2545.4,0.39279]
[1726851979415,0.39278,2545.6,2545.5,0.39278]
[1726851979715,3.4746,2545.9,2545.2,4.9496]
[1726851979716,4.45643,2545.9,2545.2,4.9496]
[1726851979911,0.39277,2545.7,2545.6,0.39277]
[1726851980112,4.18963,2545.9,2545.3,4.18983]
[1726851980113,3.2078,2545.9,2545.3,4.18983]
[1726851980416,0.39275,2545.8,2545.7,0.39276]
[1726851980624,0.39276,2545.7,2545.6,0.39276]
[1726851981719,0.39275,2545.8,2545.7,0.39275]
[1726851982418,3.6947,2546.2,2545.6,3.2078]
[1726851982714,3.6947,2546.2,2546.1,0.39269]
[1726851982715,3.2078,2546.2,2546.1,0.39269]
[1726851983613,0.3927,2546.1,2546.0,0.3927]
[1726851984209,3.60049,2546.2,2546.1,0.39269]
[1726851984608,7.52769,2546.2,2546.1,0.39269]
[1726851985018,0.3927,2546.1,2546.0,0.3927]
[1726851985214,0.39271,2546.0,2545.9,0.39272]
[1726851985615,0.3927,2546.1,2546.0,0.39269]
[1726851985820,3.60049,2546.2,2546.1,0.39269]
[1726851986023,0.39269,2546.1,2546.0,0.3927]
[1726851986413,3.60049,2546.2,2546.1,0.39269]
[1726851986615,3.60049,2546.2,2546.0,0.3927]
[1726851986616,0.3927,2546.1,2546.0,0.3927]
[1726851986824,0.39265,2546.4,2545.9,4.18962]
[1726851987212,3.2078,2546.8,2546.2,3.2078]
[1726851987414,3.6933,2547.1,2546.3,1.4886]
[1726851987816,0.39261,2546.7,2546.5,0.39263]
[1726851988021,0.39261,2546.7,2546.3,1.4886]
[1726851988022,0.39259,2546.8,2546.6,0.39261]
[1726851988822,0.39262,2546.6,2546.4,0.39264]
[1726851989029,0.39262,2546.6,2546.3,1.4886]
[1726851989030,3.60039,2546.8,2546.6,0.39261]
[1726851989325,3.60039,2546.8,2546.3,1.4886]
[1726851989326,0.39261,2546.7,2546.5,0.39262]
[1726851989823,3.6004,2546.8,2546.6,0.39261]
[1726851990014,3.2078,2546.8,2546.3,1.4886]
[1726851990217,3.2078,2546.8,2546.3,1.88126]
[1726851990520,0.39263,2546.6,2546.3,1.88126]
[1726851990717,0.39261,2546.7,2546.4,0.39265]
[1726851990918,0.39264,2546.5,2546.3,1.88126]
[1726851991223,0.39261,2546.7,2546.4,0.39265]
[1726851991419,3.2078,2546.8,2546.3,1.4886]
[1726851991420,0.39265,2546.4,2546.3,1.4886]
[1726851991621,0.39265,2546.4,2546.3,0.4888]
[1726851991824,4.31985,2546.4,2546.3,0.4888]
[1726851992428,10.90883,2546.4,2545.7,0.4922]
[1726851992625,0.39271,2546.0,2545.8,0.91003]
[1726851992821,0.39271,2546.1,2545.8,0.91003]
[1726851993021,0.98163,2546.4,2545.8,0.91003]
[1726851993022,0.39271,2546.0,2545.8,0.91003]
[1726851993330,0.98163,2546.4,2545.8,0.91003]
[1726851993529,0.98166,2546.3,2545.8,0.91003]
[1726851993726,7.3681,2546.5,2545.8,3.7251]
[1726851993922,7.3681,2546.5,2545.8,4.11783]
[1726851993923,0.3927,2546.1,2545.8,4.11783]
[1726851994236,0.39271,2546.0,2545.8,4.11783]
[1726851994634,0.3927,2546.1,2545.8,4.11783]
[1726851994829,0.39271,2546.0,2545.8,3.7251]
[1726851995030,0.39271,2546.0,2545.8,4.11783]
[1726851995725,0.3927,2546.1,2545.8,3.7251]
[1726851996034,0.3927,2546.1,2545.8,4.11783]
[1726851996825,0.39272,2545.9,2545.8,0.5173]
[1726851997328,4.32072,2545.9,2545.8,0.5173]
[1726851997937,0.98168,2546.3,2545.8,0.5173]
[1726851998239,0.39268,2546.2,2546.0,0.3927]
[1726851998732,0.39269,2546.1,2545.9,1.0476]
[1726851999234,0.39269,2546.1,2546.0,0.39271]
[1726851999734,0.98164,2546.4,2546.0,0.3927]
[1726851999933,4.22490479,2546.5,2545.9,1.0476]
[1726851999934,0.3927,2546.1,2545.9,1.44031]
[1726852000128,0.39271,2546.0,2545.9,1.0476]
[1726852000328,0.39272,2545.9,2545.8,0.5173]
[1726852000531,0.39277,2545.6,2545.5,0.5011]
[1726852000724,0.98178,2546.0,2545.6,0.39277]
[1726852000725,0.39276,2545.7,2545.6,0.39277]
[1726852000926,0.39277,2545.6,2545.5,4.2157]
[1726852001121,0.9302,2546.1,2545.6,0.39277]
[1726852001122,0.39276,2545.7,2545.6,0.39277]
[1726852001633,0.39276,2545.7,2545.5,4.60847]
[1726852002031,0.39277,2545.6,2545.5,4.2157]
[1726852002533,0.39277,2545.6,2545.5,0.5068]
[1726852003439,0.39277,2545.6,2545.5,0.89959]
[1726852003932,0.39276,2545.7,2545.5,0.5068]
[1726852004137,1.01710479,2546.0,2545.7,0.39275]
[1726852004437,1.99881479,2546.2,2545.6,3.2078]
[1726852004734,1.40981479,2546.0,2545.8,0.39273]
[1726852004928,1.01710479,2546.0,2545.9,0.39272]
[1726852005329,1.0180691,2546.0,2545.9,0.39272]
[1726852005534,1.72213774,2546.1,2545.7,1.49219]
[1726852005535,1.0180691,2546.1,2546.0,0.39271]
[1726852005841,1.4107491,2546.2,2546.1,0.39269]
[1726852006139,0.3927,2546.1,2546.0,0.3927]
[1726852006334,1.0180691,2546.2,2545.9,0.522]
[1726852006635,1.0180691,2546.1,2545.9,0.522]
[1726852006835,0.39269,2546.1,2546.0,0.39269]
[1726852007027,1.4107591,2546.1,2546.0,0.39269]
[1726852007434,1.4107591,2546.1,2545.9,0.522]
[1726852007435,0.39271,2546.0,2545.9,0.522]
[1726852008034,1.4107691,2546.1,2546.0,0.39271]
[1726852008237,0.39271,2546.0,2545.9,4.12251]
[1726852008949,0.39271,2546.1,2546.0,0.3927]
[1726852009333,0.39269,2546.2,2546.1,0.39268]
[1726852010028,1.41084344,2546.2,2546.1,0.39268]
[1726852010537,1.01815344,2546.2,2546.1,5.30162]
[1726852010933,1.01815344,2546.2,2546.1,1.37442]
[1726852011236,1.01815344,2546.2,2546.1,6.28336]
[1726852011441,0.39263,2546.5,2546.2,0.9817]
[1726852011639,0.39263,2546.5,2546.2,4.6967]
[1726852011937,0.39263,2546.5,2546.4,0.39265]
[1726852012436,0.39262,2546.6,2546.5,0.39262]
[1726852013439,0.39262,2546.6,2546.4,0.39264]
[1726852013641,0.39263,2546.5,2546.4,0.39264]
[1726852014744,0.91082,2546.6,2546.5,0.39263]
[1726852014941,0.39264,2546.5,2546.4,0.39264]
[1726852015439,0.39263,2546.6,2546.5,0.39262]
[1726852016642,0.39263,2546.6,2546.5,0.39263]
[1726852016842,3.2078,2546.8,2546.2,5.2218]
[1726852017042,3.2078,2546.8,2546.5,0.39263]
[1726852017243,3.2078,2546.8,2546.2,5.2218]
[1726852017244,0.39264,2546.5,2546.4,0.39264]
[1726852018141,0.39266,2546.4,2546.3,0.39266]
[1726852018349,0.39264,2546.5,2546.4,0.39264]
[1726852018536,0.39264,2546.5,2546.2,4.2401]
[1726852018849,0.39264,2546.5,2546.4,0.39264]
[1726852019957,0.39266,2546.3,2546.2,0.89987]
[1726852020158,4.04166,2546.3,2545.9,4.73374179]
[1726852020349,4.04166,2546.3,2545.9,1.91865179]
[1726852020653,0.39269,2546.2,2546.1,0.39269]
[1726852020854,0.39267,2546.3,2545.9,2.50775179]
[1726852021153,0.39269,2546.2,2546.1,0.39269]
[1726852022158,0.39267,2546.3,2546.2,0.39268]
[1726852022359,0.39269,2546.1,2546.0,0.5351]
[1726852022554,0.39269,2546.1,2545.9,4.23494179]
[1726852022555,0.39271,2546.0,2545.9,4.23494179]
[1726852022750,0.91881,2546.0,2545.9,1.02714179]
[1726852022955,0.39271,2546.0,2545.9,1.02714179]
[1726852023251,4.04174,2546.1,2545.9,1.02714179]
[1726852023252,0.39271,2546.1,2545.9,1.02714179]
[1726852023454,4.64615913,2546.0,2545.9,0.39272]
[1726852024058,0.39272,2545.9,2545.8,0.89433]
[1726852024245,2.03719496,2545.9,2545.8,0.89433]
[1726852024553,2.43024889,2545.9,2545.8,0.89433]
[1726852024755,0.39272,2545.9,2545.8,0.89433]
[1726852025256,3.92085957,2545.9,2545.8,0.5016]
[1726852025551,5.62835177,2545.9,2545.8,0.5016]
[1726852025851,4.64653177,2545.9,2545.8,0.89434]
[1726852026260,4.64653177,2545.9,2545.8,0.5016]
[1726852026447,4.64653177,2545.9,2545.5,3.2078]
[1726852026448,1.7074922,2545.9,2545.5,3.2078]
[1726852026660,2.03861984,2545.7,2545.6,0.39277]
[1726852026964,2.03861984,2545.7,2545.5,4.09057]
[1726852027169,0.39277,2545.6,2545.5,3.6978]
[1726852027371,2.1012179,2545.6,2545.5,3.6978]
[1726852027664,4.64915727,2545.6,2545.5,3.6978]
[1726852028166,0.39277,2545.6,2545.5,3.6978]
[1726852028469,0.39277,2545.6,2545.1,6.97782268]
[1726852028470,4.04193,2545.6,2545.3,0.39281]
[1726852028967,0.39281,2545.4,2545.2,0.89472]
[1726852029172,4.58853626,2545.6,2545.2,0.5019]
[1726852029465,0.39281,2545.4,2545.2,0.89473]
[1726852029669,3.06,2545.6,2545.2,0.5019]
[1726852029870,3.45278,2545.6,2545.4,0.3928]
[1726852030061,1.52853626,2545.7,2545.2,0.5019]
[1726852030256,1.52853626,2545.8,2545.2,1.48397]
[1726852030461,3.2078,2545.9,2545.8,0.39274]
[1726852030669,3.2078,2545.9,2545.5,6.2678]
[1726852030670,3.60053,2545.9,2545.5,6.2678]
[1726852030865,3.60053,2545.9,2545.8,0.39274]
[1726852031056,0.39274,2545.8,2545.7,0.92385]
[1726852031463,3.60054,2545.9,2545.7,0.92385]
[1726852031670,3.2078,2545.9,2545.7,0.5311]
[1726852032163,3.60053,2545.9,2545.7,0.5311]
[1726852032360,5.09804834,2546.2,2545.7,0.5311]
[1726852032361,1.92122626,2546.2,2545.8,3.2078]
[1726852032661,3.2078,2546.4,2545.8,3.2078]
[1726852032866,5.09483626,2546.6,2546.3,0.39266]
[1726852033079,0.39264,2546.5,2546.4,0.39265]
[1726852033368,0.39265,2546.4,2546.3,0.39266]
[1726852033868,3.06,2546.4,2546.1,3.2078]
[1726852034270,0.39268,2546.2,2546.1,3.2078]
[1726852034773,0.39268,2546.2,2546.1,3.60049]
[1726852035177,0.39267,2546.3,2546.1,3.60049]
[1726852035866,4.58853626,2546.4,2546.2,0.39268]
[1726852035867,4.98119626,2546.4,2546.2,0.39268]
[1726852036067,2.03804834,2546.3,2546.2,0.39267]
[1726852037379,0.71792745,2546.5,2546.4,0.98163]
[1726852037568,2.03804834,2547.1,2546.5,1.96318]
[1726852037769,2.03939434,2547.4,2547.2,0.98132]
[1726852037973,2.03939434,2547.6,2547.5,0.39248]
[1726852038269,2.03939434,2547.8,2547.7,0.39245]
[1726852038471,6.7726474,2548.4,2547.7,6.2678]
[1726852038472,2.43173434,2548.4,2547.7,6.2678]
[1726852038668,2.03939434,2548.5,2548.0,0.3924]
[1726852038869,2.03939434,2548.5,2547.7,6.2678]
[1726852038870,3.06,2548.4,2547.9,4.455]
[1726852039174,2.03939434,2548.5,2547.9,4.455]
[1726852039175,3.06,2548.2,2547.9,4.455]
[1726852039680,0.39242,2547.9,2547.4,4.84749]
[1726852039876,3.06,2548.0,2547.4,4.455]
[1726852040074,3.06,2548.0,2547.5,0.39247]
[1726852040075,0.39241,2548.0,2547.5,0.39247]
[1726852040277,0.8939,2548.1,2547.6,3.60026]
[1726852040466,0.8939,2548.1,2547.5,3.60026]
[1726852040467,0.3924,2548.0,2547.5,3.60026]
[1726852040667,0.3924,2548.0,2547.5,4.13487]
[1726852041966,0.5015,2548.1,2547.5,4.62577]
[1726852042172,0.89389,2548.1,2547.5,4.62577]
[1726852042375,0.3924,2548.0,2547.5,4.62577]
[1726852042580,0.3924,2548.0,2547.5,4.62578]
[1726852042778,0.89389,2548.1,2547.6,0.39246]
[1726852043075,0.3924,2548.0,2547.5,4.62577]
[1726852043975,0.39242,2547.9,2547.5,4.62577]
[1726852044177,0.39241,2548.0,2547.5,4.62577]
[1726852044383,0.39242,2547.9,2547.5,4.62577]
[1726852044574,0.39243,2547.9,2547.5,1.41798]
[1726852044971,3.2078,2548.0,2547.2,3.2078]
[1726852045174,3.60025,2547.7,2547.3,1.4623]
[1726852045482,3.60025,2547.7,2547.3,1.0698]
[1726852045483,0.39246,2547.6,2547.3,1.0698]
[1726852045777,3.2078,2547.7,2547.3,1.0698]
[1726852046384,0.39249,2547.4,2547.3,1.0698]
[1726852047779,0.39248,2547.5,2547.3,1.0698]
[1726852047979,0.39247,2547.6,2547.3,1.4623]
[1726852048280,0.39247,2547.6,2547.3,1.0698]
[1726852048878,0.39248,2547.5,2547.3,1.0698]
[1726852049186,0.39247,2547.6,2547.3,1.0698]
[1726852049384,0.39248,2547.5,2547.3,1.0698]
[1726852049884,0.39247,2547.6,2547.3,1.0698]
[1726852050069,0.39248,2547.5,2547.3,1.0698]
[1726852050781,0.4937,2547.8,2547.3,1.0698]
[1726852051284,0.5409,2547.9,2547.3,1.0698]
[1726852051470,0.39245,2547.7,2547.4,0.39249]
[1726852052383,0.5409,2547.9,2547.5,0.39247]
[1726852052578,0.39246,2547.7,2547.4,0.39248]
[1726852053183,0.5409,2547.9,2547.7,0.39244]
[1726852053184,0.93333,2547.9,2547.7,0.39244]
[1726852053373,0.39236,2548.3,2548.0,0.39239]
[1726852053577,2.03939434,2548.9,2547.8,3.2078]
[1726852053578,0.5126,2548.6,2547.8,3.2078]
[1726852053885,0.39235,2548.4,2548.1,0.39238]
[1726852054278,0.39238,2548.2,2547.9,1.0636]
[1726852054483,7.95864,2548.5,2547.9,1.0636]
[1726852054689,0.39239,2548.1,2547.9,1.0636]
[1726852055588,4.16238,2548.2,2547.9,1.45601]
[1726852055987,0.39239,2548.1,2547.9,1.0636]
[1726852056191,4.16238,2548.2,2547.9,1.45602]
[1726852056993,3.2078,2548.8,2548.7,0.39229]
[1726852057385,0.39226,2548.9,2548.4,8.6797]
[1726852057583,3.2078,2549.0,2548.5,0.5138]
[1726852057890,0.9807,2548.8,2548.5,0.5138]
[1726852058080,3.2078,2549.0,2548.6,0.39231]